Workbook

Sheet 一号馆
A1: 序号 | B1: 房产坐落地址 | C1: 用途 | D1: 面积 （㎡） | E1: 单价 （元/月/㎡） | F1: 月租金 （元/㎡） | G1: 招租底价 (元/年)
A2: =MAX(A$1:A1)+1 -> 1 | B2: 一号馆B006 | C2: 商业 | D2: 189.43 | E2: 25 | F2: =E2*D2 -> 4736 | G2: =F2*12 -> 56832
A3: =MAX(A$1:A2)+1 -> 2 | B3: 一号馆B105-106 | C3: 商业 | D3: 142.54 | E3: 25 | F3: =E3*D3 -> 3564 | G3: =F3*12 -> 42768
A4: =MAX(A$1:A3)+1 -> 3 | B4: 一号馆B107 | C4: 商业 | D4: 216.79 | E4: 25 | F4: 5420 | G4: 65040
A5: =MAX(A$1:A4)+1 -> 4 | B5: 一号馆B108 | C5: 商业 | D5: 41.94 | E5: 25 | F5: 1049 | G5: 12588
A6: =MAX(A$1:A5)+1 -> 5 | B6: 一号馆B109 | C6: 商业 | D6: 33.45 | E6: 25 | F6: 836 | G6: 10032
A7: =MAX(A$1:A6)+1 -> 6 | B7: 一号馆B001-003 | C7: 商业 | D7: 285.35 | E7: 28 | F7: 7990 | G7: 95880
A8: =MAX(A$1:A7)+1 -> 7 | B8: 一号馆B008 | C8: 商业 | D8: 319.21 | E8: 25 | F8: 7980 | G8: 95760
A9: =MAX(A$1:A8)+1 -> 8 | B9: 一号馆B009 | C9: 商业 | D9: 111.67 | E9: 25 | F9: 2792 | G9: 33504
A10: =MAX(A$1:A9)+1 -> 9 | B10: 一号馆B010 | C10: 商业 | D10: 133.31 | E10: 25 | F10: 3333 | G10: 39996
A11: =MAX(A$1:A10)+1 -> 10 | B11: 一号馆B011-012 | C11: 商业 | D11: 217.98 | E11: 25 | F11: 5450 | G11: 65400
A12: =MAX(A$1:A11)+1 -> 11 | B12: 一号馆B117 | C12: 商业 | D12: 115.2 | E12: 25 | F12: 2880 | G12: 34560
A13: =MAX(A$1:A12)+1 -> 12 | B13: 一号馆B118 | C13: 商业 | D13: 115.2 | E13: 25 | F13: 2880 | G13: 34560
A14: =MAX(A$1:A13)+1 -> 13 | B14: 一号馆B119 | C14: 商业 | D14: 87.52 | E14: 25 | F14: 2188 | G14: 26256
A15: =MAX(A$1:A14)+1 -> 14 | B15: 一号馆B004-005 | C15: 商业 | D15: 123.03 | E15: 25 | F15: 3076 | G15: 36912
A16: =MAX(A$1:A15)+1 -> 15 | B16: 一号馆B013-014 | C16: 商业 | D16: 154.51 | E16: 20 | F16: 3090 | G16: 37080
A17: =MAX(A$1:A16)+1 -> 16 | B17: 一号馆B015 | C17: 商业 | D17: 154.51 | E17: 20 | F17: 3090 | G17: 37080
A18: =MAX(A$1:A17)+1 -> 17 | B18: 一号馆B120 | C18: 商业 | D18: 135.88 | E18: 20 | F18: 2718 | G18: 32616
A19: =MAX(A$1:A18)+1 -> 18 | B19: 一号馆B121 | C19: 商业 | D19: 113.04 | E19: 20 | F19: 2261 | G19: 27132
A20: =MAX(A$1:A19)+1 -> 19 | B20: 一号馆B122-123 | C20: 商业 | D20: 76.66 | E20: 20 | F20: 1533 | G20: 18396
A21: =MAX(A$1:A20)+1 -> 20 | B21: 一号馆B016 | C21: 商业 | D21: 38.38 | E21: 20 | F21: 768 | G21: 9216
A22: =MAX(A$1:A21)+1 -> 21 | B22: 一号馆B101 | C22: 商业 | D22: 430.7 | E22: 20 | F22: 8614 | G22: 103368
A23: =MAX(A$1:A22)+1 -> 22 | B23: 一号馆B102-103 | C23: 商业 | D23: 61.2 | E23: 20 | F23: 1224 | G23: 14688
A24: =MAX(A$1:A23)+1 -> 23 | B24: 一号馆1001、1002、1004 | C24: 商业 | D24: 192.11 | E24: 50 | F24: =E24*D24 -> 9606 | G24: =F24*12 -> 115272
A25: =MAX(A$1:A24)+1 -> 24 | B25: 一号馆1028、1029、1034、1035 | C25: 商业 | D25: 306.31 | E25: 50 | F25: 15316 | G25: 183792
A26: =MAX(A$1:A25)+1 -> 25 | B26: 一号馆1030-1033 | C26: 商业 | D26: 257.45 | E26: 50 | F26: 12873 | G26: 154476
A27: =MAX(A$1:A26)+1 -> 26 | B27: 一号馆1036-1039 | C27: 商业 | D27: 368.21 | E27: 52 | F27: 19147 | G27: 229764
A28: =MAX(A$1:A27)+1 -> 27 | B28: 一号馆1-002 | C28: 商业 | D28: 76.37 | E28: 50 | F28: 3819 | G28: 45828
A29: =MAX(A$1:A28)+1 -> 28 | B29: 一号馆1006-1008 | C29: 商业 | D29: 394.63 | E29: 45 | F29: 17758 | G29: 213096
B30: 一号馆1008A | C30: 商业
A31: =MAX(A$1:A30)+1 -> 29 | B31: 一号馆1009 | C31: 商业 | D31: 221.04 | E31: 39 | F31: 8621 | G31: 103452
A32: =MAX(A$1:A31)+1 -> 30 | B32: 一号馆1018-1020 | C32: 商业 | D32: 103 | E32: 38 | F32: 3914 | G32: 46968
A33: =MAX(A$1:A32)+1 -> 31 | B33: 一号馆1021-1024 | C33: 商业 | D33: 137.59 | E33: 38 | F33: 5228 | G33: 62736
A34: =MAX(A$1:A33)+1 -> 32 | B34: 一号馆1025-1027 | C34: 商业 | D34: 173.72 | E34: 38 | F34: 6601 | G34: 79212
A35: =MAX(A$1:A34)+1 -> 33 | B35: 一号馆1010 | C35: 商业 | D35: 224.64 | E35: 35 | F35: 7862 | G35: 94344
A36: =MAX(A$1:A35)+1 -> 34 | B36: 一号馆1011 | C36: 商业 | D36: 116.64 | E36: 35 | F36: 4082 | G36: 48984
A37: =MAX(A$1:A36)+1 -> 35 | B37: 一号馆1012 | C37: 商业 | D37: 116.64 | E37: 35 | F37: 4082 | G37: 48984
A38: =MAX(A$1:A37)+1 -> 36 | B38: 一号馆1013 | C38: 商业 | D38: 46.08 | E38: 35 | F38: 1613 | G38: 19356
A39: =MAX(A$1:A38)+1 -> 37 | B39: 一号馆1014 | C39: 商业 | D39: 123.5 | E39: 35 | F39: 4323 | G39: 51876
A40: =MAX(A$1:A39)+1 -> 38 | B40: 一号馆1015 | C40: 商业 | D40: 178.99 | E40: 35 | F40: 6265 | G40: 75180
A41: =MAX(A$1:A40)+1 -> 39 | B41: 一号馆1016 | C41: 商业 | D41: 48.73 | E41: 38 | F41: 1852 | G41: 22224
A42: =MAX(A$1:A41)+1 -> 40 | B42: 一号馆2001-2003 | C42: 商业 | D42: 363.37 | E42: 29 | F42: 10538 | G42: 126456
A43: =MAX(A$1:A42)+1 -> 41 | B43: 一号馆2020 | C43: 商业 | D43: 248.31 | E43: 29 | F43: 7201 | G43: 86412
A44: =MAX(A$1:A43)+1 -> 42 | B44: 一号馆2021 | C44: 商业 | D44: 251.53 | E44: 29 | F44: 7294 | G44: 87528
A45: =MAX(A$1:A44)+1 -> 43 | B45: 一号馆2022 | C45: 商业 | D45: 172.06 | E45: 29 | F45: 4990 | G45: 59880
A46: =MAX(A$1:A45)+1 -> 44 | B46: 一号馆2023 | C46: 商业 | D46: 82.19 | E46: 29 | F46: 2384 | G46: 28608
A47: =MAX(A$1:A46)+1 -> 45 | B47: 一号馆2024-2025 | C47: 商业 | D47: 164.57 | E47: 29 | F47: 4773 | G47: 57276
A48: =MAX(A$1:A47)+1 -> 46 | B48: 一号馆2004 | C48: 商业 | D48: 111.65 | E48: 29 | F48: 3238 | G48: 38856
A49: =MAX(A$1:A48)+1 -> 47 | B49: 一号馆2006 | C49: 商业 | D49: 158.62 | E49: 29 | F49: 4600 | G49: 55200
A50: =MAX(A$1:A49)+1 -> 48 | B50: 一号馆2007 | C50: 商业 | D50: 100.78 | E50: 29 | F50: 2923 | G50: 35076
A51: =MAX(A$1:A50)+1 -> 49 | B51: 一号馆2008 | C51: 商业 | D51: 251.5 | E51: 29 | F51: 7294 | G51: 87528
A52: =MAX(A$1:A51)+1 -> 50 | B52: 一号馆2009 | C52: 商业 | D52: 219.15 | E52: 29 | F52: 6355 | G52: 76260
A53: =MAX(A$1:A52)+1 -> 51 | B53: 一号馆2017 | C53: 商业 | D53: 177.55 | E53: 29 | F53: 5149 | G53: 61788
A54: =MAX(A$1:A53)+1 -> 52 | B54: 一号馆2018-2019 | C54: 商业 | D54: 174.1 | E54: 29 | F54: 5049 | G54: 60588
A55: =MAX(A$1:A54)+1 -> 53 | B55: 一号馆2005 | C55: 商业 | D55: 118.8 | E55: 29 | F55: 3445 | G55: 41340
A56: =MAX(A$1:A55)+1 -> 54 | B56: 一号馆2010-2011 | C56: 商业 | D56: 446.44 | E56: 29 | F56: 12947 | G56: 155364
A57: =MAX(A$1:A56)+1 -> 55 | B57: 一号馆2014 | C57: 商业 | D57: 132.37 | E57: 29 | F57: 3839 | G57: 46068
A58: =MAX(A$1:A57)+1 -> 56 | B58: 一号馆2015 | C58: 商业 | D58: 179.51 | E58: 29 | F58: 5206 | G58: 62472
A59: =MAX(A$1:A58)+1 -> 57 | B59: 一号馆2016 | C59: 商业 | D59: 51 | E59: 29 | F59: 1479 | G59: 17748
A60: =MAX(A$1:A59)+1 -> 58 | B60: 一号馆2012 | C60: 商业 | D60: 224.19 | E60: 29 | F60: 6502 | G60: 78024
A61: =MAX(A$1:A60)+1 -> 59 | B61: 一号馆2013A | C61: 商业 | D61: 61.16 | E61: 29 | F61: 1774 | G61: 21288
A62: =MAX(A$1:A61)+1 -> 60 | B62: 一号馆2013B | C62: 商业 | D62: 92.92 | E62: 29 | F62: 2695 | G62: 32340
A63: =MAX(A$1:A62)+1 -> 61 | B63: 一号馆3001 | C63: 商业 | D63: 185.9 | E63: 25 | F63: 4648 | G63: 55776
A64: =MAX(A$1:A63)+1 -> 62 | B64: 一号馆3002 | C64: 商业 | D64: 177.52 | E64: 25 | F64: 4438 | G64: 53256
A65: =MAX(A$1:A64)+1 -> 63 | B65: 一号馆3019 | C65: 商业 | D65: 246.78 | E65: 25 | F65: 6170 | G65: 74040
A66: =MAX(A$1:A65)+1 -> 64 | B66: 一号馆3020 | C66: 商业 | D66: 246.78 | E66: 25 | F66: 6170 | G66: 74040
A67: =MAX(A$1:A66)+1 -> 65 | B67: 一号馆3021 | C67: 商业 | D67: 174.26 | E67: 25 | F67: 4357 | G67: 52284
A68: =MAX(A$1:A67)+1 -> 66 | B68: 一号馆3022-3024 | C68: 商业 | D68: 283.63 | E68: 25 | F68: 7091 | G68: 85092
A69: =MAX(A$1:A68)+1 -> 67 | B69: 一号馆3003 | C69: 商业 | D69: 112.28 | E69: 25 | F69: 2807 | G69: 33684
A70: =MAX(A$1:A69)+1 -> 68 | B70: 一号馆3004 | C70: 商业 | D70: 120.69 | E70: 25 | F70: 3017 | G70: 36204
A71: =MAX(A$1:A70)+1 -> 69 | B71: 一号馆3005 | C71: 商业 | D71: 154.67 | E71: 25 | F71: 3867 | G71: 46404
A72: =MAX(A$1:A71)+1 -> 70 | B72: 一号馆3006 | C72: 商业 | D72: 107.73 | E72: 25 | F72: 2693 | G72: 32316
A73: =MAX(A$1:A72)+1 -> 71 | B73: 一号馆3007 | C73: 商业 | D73: 126.23 | E73: 25 | F73: 3156 | G73: 37872
A74: =MAX(A$1:A73)+1 -> 72 | B74: 一号馆3016-3018 | C74: 商业 | D74: 349.81 | E74: 25 | F74: 8745 | G74: 104940
A75: =MAX(A$1:A74)+1 -> 73 | B75: 一号馆3025 | C75: 商业 | D75: 178.92 | E75: 25 | F75: 4473 | G75: 53676
A76: =MAX(A$1:A75)+1 -> 74 | B76: 一号馆3026 | C76: 商业 | D76: 242.06 | E76: 25 | F76: 6052 | G76: 72624
A77: =MAX(A$1:A76)+1 -> 75 | B77: 一号馆3027 | C77: 商业 | D77: 152.03 | E77: 25 | F77: 3801 | G77: 45612
A78: =MAX(A$1:A77)+1 -> 76 | B78: 一号馆3008-3009 | C78: 商业 | D78: 232.38 | E78: 25 | F78: 5810 | G78: 69720
A79: =MAX(A$1:A78)+1 -> 77 | B79: 一号馆3010-3012 | C79: 商业 | D79: 282.96 | E79: 25 | F79: 7074 | G79: 84888
A80: =MAX(A$1:A79)+1 -> 78 | B80: 一号馆3013-3015 | C80: 商业 | D80: 361.73 | E80: 25 | F80: 9043 | G80: 108516
A81: =MAX(A$1:A80)+1 -> 79 | B81: 一号馆4001 | C81: 商业 | D81: 209.12 | E81: 21 | F81: 4392 | G81: 52704
A82: =MAX(A$1:A81)+1 -> 80 | B82: 一号馆4002 | C82: 商业 | D82: 147.64 | E82: 21 | F82: 3100 | G82: 37200
A83: =MAX(A$1:A82)+1 -> 81 | B83: 一号馆4003 | C83: 商业 | D83: 239.44 | E83: 21 | F83: 5028 | G83: 60336
A84: =MAX(A$1:A83)+1 -> 82 | B84: 一号馆4005 | C84: 商业 | D84: 178.54 | E84: 21 | F84: 3749 | G84: 44988
A85: =MAX(A$1:A84)+1 -> 83 | B85: 一号馆4012 | C85: 商业 | D85: 121.73 | E85: 21 | F85: 2556 | G85: 30672
A86: =MAX(A$1:A85)+1 -> 84 | B86: 一号馆4013 | C86: 商业 | D86: 120.67 | E86: 21 | F86: 2534 | G86: 30408
A87: =MAX(A$1:A86)+1 -> 85 | B87: 一号馆4016A | C87: 商业 | D87: 66.83 | E87: 21 | F87: 1403 | G87: 16836
A88: =MAX(A$1:A87)+1 -> 86 | B88: 一号馆五楼A区 | C88: 办公 | D88: 258.65 | E88: 25 | F88: 6466 | G88: 77592
A89: =MAX(A$1:A88)+1 -> 87 | B89: 一号馆六楼 | C89: 办公 | D89: 666.1 | E89: 25 | F89: =E89*D89 -> 16653 | G89: =F89*12 -> 199836
A90: =MAX(A$1:A89)+1 -> 88 | B90: 一号馆七楼 | C90: 办公 | D90: 666.08 | E90: 25 | F90: =E90*D90 -> 16652 | G90: =F90*12 -> 199824
A91: =MAX(A$1:A90)+1 -> 89 | B91: 一号馆八楼 | C91: 办公 | D91: 666.08 | E91: 25 | F91: =E91*D91 -> 16652 | G91: =F91*12 -> 199824
A92: =MAX(A$1:A91)+1 -> 90 | B92: 一号馆九楼 | C92: 办公 | D92: 666.08 | E92: 25 | F92: =E92*D92 -> 16652 | G92: =F92*12 -> 199824

Sheet 二号馆、三号馆、四号馆
A1: 序号 | B1: 房产坐落地址 | C1: 用途 | D1: 面积 （㎡） | E1: 单价 （元/月/㎡） | F1: 月租金 （元/㎡） | G1: 招租底价 (元/年)
A2: =MAX(A$1:A1)+1 -> 1 | B2: 二号馆2-103A | C2: 商业 | D2: 164.04 | E2: 55 | F2: =E2*D2 -> 9022 | G2: =F2*12 -> 108264
A3: =MAX(A$2:A2)+1 -> 2 | B3: 二号馆2-103B | C3: 商业 | D3: 160.07 | E3: 55 | F3: 8804 | G3: 105648
A4: =MAX(A$2:A3)+1 -> 3 | B4: 二号馆2-104 | C4: 商业 | D4: 242.96 | E4: 60 | F4: 14578 | G4: 174936
A5: =MAX(A$2:A4)+1 -> 4 | B5: 三号馆3-101 | C5: 商业 | D5: 311.55 | E5: 58 | F5: 18070 | G5: 216840
A6: =MAX(A$2:A5)+1 -> 5 | B6: 三号馆3-102 | C6: 商业 | D6: 309.3 | E6: 58 | F6: 17939 | G6: 215268
A7: =MAX(A$2:A6)+1 -> 6 | B7: 三号馆3-103 | C7: 商业 | D7: 311.55 | E7: 58 | F7: 18070 | G7: 216840
A8: =MAX(A$2:A7)+1 -> 7 | B8: 三号馆3-104 | C8: 商业 | D8: 311.55 | E8: 58 | F8: 18070 | G8: 216840
A9: =MAX(A$2:A8)+1 -> 8 | B9: 三号馆3-105 | C9: 商业 | D9: 311.55 | E9: 58 | F9: 18070 | G9: 216840
A10: =MAX(A$2:A9)+1 -> 9 | B10: 三号馆3-106 | C10: 商业 | D10: 308.91 | E10: 58 | F10: 17917 | G10: 215004
A11: =MAX(A$2:A10)+1 -> 10 | B11: 三号馆3-107 | C11: 商业 | D11: 311.55 | E11: 58 | F11: 18070 | G11: 216840
A12: =MAX(A$2:A11)+1 -> 11 | B12: 三号馆3-108 | C12: 商业 | D12: 311.55 | E12: 58 | F12: 18070 | G12: 216840
A13: =MAX(A$2:A12)+1 -> 12 | B13: 三号馆3-109 | C13: 商业 | D13: 311.55 | E13: 58 | F13: 18070 | G13: 216840
A14: =MAX(A$2:A13)+1 -> 13 | B14: 三号馆3-111 | C14: 商业 | D14: 313.4 | E14: 58 | F14: 18177 | G14: 218124
A15: =MAX(A$2:A14)+1 -> 14 | B15: 三号馆3-110 | C15: 商业 | D15: 307.37 | E15: 58 | F15: 17827 | G15: 213924
A16: =MAX(A$2:A15)+1 -> 15 | B16: 四号馆4-101 | C16: 商业 | D16: 313.4 | E16: 58 | F16: 18177 | G16: 218124
A17: =MAX(A$2:A16)+1 -> 16 | B17: 四号馆4-102 | C17: 商业 | D17: 926.16 | E17: 56 | F17: 51865 | G17: 622380
B18: 四号馆4-103 | C18: 商业
B19: 四号馆4-104 | C19: 商业
A20: =MAX(A$2:A19)+1 -> 17 | B20: 四号馆4-105 | C20: 商业 | D20: 311.55 | E20: 58 | F20: =E20*D20 -> 18070 | G20: =F20*12 -> 216840
A21: =MAX(A$2:A20)+1 -> 18 | B21: 四号馆4-106 | C21: 商业 | D21: 311.55 | E21: 58 | F21: 18070 | G21: 216840
A22: =MAX(A$2:A21)+1 -> 19 | B22: 四号馆4-107 | C22: 商业 | D22: 308.91 | E22: 58 | F22: 17917 | G22: 215004
A23: =MAX(A$2:A22)+1 -> 20 | B23: 四号馆4-108 | C23: 商业 | D23: 311.55 | E23: 58 | F23: 18070 | G23: 216840
A24: =MAX(A$2:A23)+1 -> 21 | B24: 四号馆4-110 | C24: 商业 | D24: 311.55 | E24: 58 | F24: 18070 | G24: 216840
A25: =MAX(A$2:A24)+1 -> 22 | B25: 四号馆4-111 | C25: 商业 | D25: 311.55 | E25: 58 | F25: 18070 | G25: 216840
A26: =MAX(A$2:A25)+1 -> 23 | B26: 四号馆4-112 | C26: 商业 | D26: =311.55+109.37 -> 420.92 | E26: 65 | F26: 27360 | G26: 328320
B27: 四号馆4-113 | C27: 商业

Sheet 五号馆
A1: 序号 | B1: 房产坐落地址 | C1: 用途 | D1: 面积 （㎡） | E1: 单价 （元/月/㎡） | F1: 月租金 （元/㎡） | G1: 招租底价 (元/年)
A2: =MAX(A$1:A1)+1 -> 1 | B2: 五号馆特陶大楼一楼101 | C2: 商业 | D2: 154.80 | E2: 90 | F2: =E2*D2 -> 13932 | G2: =F2*12 -> 167184
A3: =MAX(A$2:A2)+1 -> 2 | B3: 五号馆特陶大楼一楼102 | C3: 商业 | D3: 178.20 | E3: 90 | F3: =E3*D3 -> 16038 | G3: =F3*12 -> 192456
A4: =MAX(A$2:A3)+1 -> 3 | B4: 五号馆特陶大楼一楼103 | C4: 商业 | D4: 161.70 | E4: 90 | F4: =E4*D4 -> 14553 | G4: =F4*12 -> 174636
A5: =MAX(A$2:A4)+1 -> 4 | B5: 五号馆鹿城路381号 | C5: 商业 | D5: 79.78 | E5: 93 | F5: =E5*D5 -> 7420 | G5: =F5*12 -> 89040
A6: =MAX(A$2:A5)+1 -> 5 | B6: 五号馆鹿城路381号配套 | C6: 商业 | D6: 26.62 | E6: 30 | F6: =E6*D6 -> 799 | G6: =F6*12 -> 9588
A7: =MAX(A$2:A6)+1 -> 6 | B7: 五号馆鹿城路389号 | C7: 商业 | D7: 61.02 | E7: 93 | F7: =E7*D7 -> 5675 | G7: =F7*12 -> 68100
A8: =MAX(A$2:A7)+1 -> 7 | B8: 五号馆鹿城路399号 | C8: 商业 | D8: 105 | E8: 93 | F8: =E8*D8 -> 9765 | G8: =F8*12 -> 117180
A9: =MAX(A$2:A8)+1 -> 8 | B9: 五号馆鹿城路409号 | C9: 商业 | D9: 57.8 | E9: 93 | F9: =E9*D9 -> 5375 | G9: =F9*12 -> 64500
A10: =MAX(A$2:A9)+1 -> 9 | B10: 五号馆特陶大楼二楼B区 | C10: 商业 | D10: 82.74 | E10: 30 | F10: =E10*D10 -> 2482 | G10: =F10*12 -> 29784
A11: =MAX(A$2:A10)+1 -> 10 | B11: 五号馆特陶大楼二楼C区 | C11: 商业 | D11: 301.64 | E11: 30 | F11: =E11*D11 -> 9049 | G11: =F11*12 -> 108588
A12: =MAX(A$2:A11)+1 -> 11 | B12: 五号馆特陶大楼二楼D区 | C12: 商业 | D12: 91.47 | E12: 30 | F12: =E12*D12 -> 2744 | G12: =F12*12 -> 32928
A13: =MAX(A$2:A12)+1 -> 12 | B13: 五号馆特陶大楼三楼B区 | C13: 商业 | D13: 317.33 | E13: 30 | F13: =E13*D13 -> 9520 | G13: =F13*12 -> 114240
A14: =MAX(A$2:A13)+1 -> 13 | B14: 五号馆特陶大楼四楼401-407 | C14: 办公 | D14: 369.3 | E14: 30 | F14: 11079 | G14: 132948
A15: =MAX(A$2:A14)+1 -> 14 | B15: 五号馆特陶大楼四楼408-414 | C15: 办公 | D15: 187.35 | E15: 30 | F15: 5621 | G15: 67452
A16: =MAX(A$2:A15)+1 -> 15 | B16: 五号馆503-504 | C16: 办公 | D16: 52 | E16: 32 | F16: 1664 | G16: 19968
A17: =MAX(A$2:A16)+1 -> 16 | B17: 五号馆505 | C17: 办公 | D17: 26 | E17: 32 | F17: 832 | G17: 9984
A18: =MAX(A$2:A17)+1 -> 17 | B18: 五号馆508 | C18: 办公 | D18: 26 | E18: 32 | F18: 832 | G18: 9984
A19: =MAX(A$2:A18)+1 -> 18 | B19: 五号馆509 | C19: 办公 | D19: 31 | E19: 28 | F19: 868 | G19: 10416
A20: =MAX(A$2:A19)+1 -> 19 | B20: 五号馆510 | C20: 办公 | D20: 50.9 | E20: 28 | F20: 1425 | G20: 17100
A21: =MAX(A$2:A20)+1 -> 20 | B21: 五号馆511 | C21: 办公 | D21: 22 | E21: 28 | F21: 616 | G21: 7392
A22: =MAX(A$2:A21)+1 -> 21 | B22: 五号馆512 | C22: 办公 | D22: 22 | E22: 28 | F22: 616 | G22: 7392
A23: =MAX(A$2:A22)+1 -> 22 | B23: 五号馆515 | C23: 办公 | D23: 22 | E23: 28 | F23: 616 | G23: 7392
A24: =MAX(A$2:A23)+1 -> 23 | B24: 五号馆516 | C24: 办公 | D24: 22 | E24: 28 | F24: 616 | G24: 7392
A25: =MAX(A$2:A24)+1 -> 24 | B25: 五号馆517 | C25: 办公 | D25: 22 | E25: 28 | F25: 616 | G25: 7392

Sheet 金山组团5-10幢一层
A1: 序号 | B1: 房产坐落地址 | C1: 用途 | D1: 面积 （㎡） | E1: 单价 （元/月/㎡） | F1: 月租金 （元/㎡） | G1: 招租底价 (元/年)
A2: =MAX(一号馆!A$1:A1)+1 -> 1 | B2: 金山组团5-10幢一层1区1号 | C2: 商业 | D2: 193 | E2: 80 | F2: =E2*D2 -> 15440 | G2: =F2*12 -> 185280
A3: =MAX(A$2:A2)+1 -> 2 | B3: 金山组团5-10幢一层1区1号店面后 | C3: 商业 | D3: =3+38.5 -> 41.5 | E3: 40 | F3: 1660 | G3: 19920
A4: =MAX(A$2:A3)+1 -> 3 | B4: 金山组团5-10幢一层1区2号 | C4: 商业 | D4: 186.13 | E4: 35 | F4: 6515 | G4: 78180
A5: =MAX(A$2:A4)+1 -> 4 | B5: 金山组团5-10幢一层1区3、3A号 | C5: 商业 | D5: 262.78 | E5: 30 | F5: 7883 | G5: 94596
A6: =MAX(A$2:A5)+1 -> 5 | B6: 金山组团5-10幢一层1区5-6号 | C6: 商业 | D6: 176.38 | E6: 30 | F6: 5291 | G6: 63492
A7: =MAX(A$2:A6)+1 -> 6 | B7: 金山组团5-10幢一层1区7A号 | C7: 商业 | D7: 63.37 | E7: 30 | F7: 1901 | G7: 22812
A8: =MAX(A$2:A7)+1 -> 7 | B8: 金山组团5-10幢一层1区8A号 | C8: 商业 | D8: 57.09 | E8: 30 | F8: 1713 | G8: 20556
A9: =MAX(A$2:A8)+1 -> 8 | B9: 金山组团5-10幢一层1区7B号 | C9: 仓库 | D9: 60.92 | E9: 30 | F9: 1828 | G9: 21936
A10: =MAX(A$2:A9)+1 -> 9 | B10: 金山组团5-10幢一层1区8B号 | C10: 仓库 | D10: 32.8 | E10: 30 | F10: 984 | G10: 11808
A11: =MAX(A$2:A10)+1 -> 10 | B11: 金山组团5-10幢一层1区9A号 | C11: 仓库 | D11: 29.76 | E11: 30 | F11: 893 | G11: 10716
A12: =MAX(A$2:A11)+1 -> 11 | B12: 金山组团5-10幢一层1区9B号 | C12: 仓库 | D12: 45.54 | E12: 30 | F12: 1366 | G12: 16392
A13: =MAX(A$2:A12)+1 -> 12 | B13: 金山组团5-10幢一层1区10A号 | C13: 仓库 | D13: 26.4 | E13: 30 | F13: 792 | G13: 9504
A14: =MAX(A$2:A13)+1 -> 13 | B14: 金山组团5-10幢一层1区10B号 | C14: 仓库 | D14: 40.29 | E14: 30 | F14: 1209 | G14: 14508
A15: =MAX(A$2:A14)+1 -> 14 | B15: 金山组团5-10幢一层1区11A号 | C15: 仓库 | D15: 23.33 | E15: 30 | F15: 700 | G15: 8400
A16: =MAX(A$2:A15)+1 -> 15 | B16: 金山组团5-10幢一层1区11B号 | C16: 仓库 | D16: 25.14 | E16: 30 | F16: 754 | G16: 9048
A17: =MAX(A$2:A16)+1 -> 16 | B17: 金山组团5-10幢一层1区12号 | C17: 商业 | D17: 60 | E17: 80 | F17: 4800 | G17: 57600
A18: =MAX(A$2:A17)+1 -> 17 | B18: 金山组团5-10幢一层1区13A号 | C18: 商业 | D18: 58.5 | E18: 80 | F18: 4680 | G18: 56160
A19: =MAX(A$2:A18)+1 -> 18 | B19: 金山组团5-10幢一层1区13号 | C19: 商业 | D19: 58.5 | E19: 80 | F19: 4680 | G19: 56160
A20: =MAX(A$2:A19)+1 -> 19 | B20: 金山组团5-10幢一层1区14号 | C20: 商业 | D20: 59.5 | E20: 80 | F20: 4760 | G20: 57120
A21: =MAX(A$2:A20)+1 -> 20 | B21: 金山组团5-10幢一层1区16-18号 | C21: 商业 | D21: =451.12 -> 451.12 | E21: 30 | F21: 13534 | G21: 162408
A22: =MAX(A$2:A21)+1 -> 21 | B22: 金山组团5-10幢一层2区2、3、5号 | C22: 商业 | D22: =205+2.5 -> 207.5 | E22: 37 | F22: 7678 | G22: 92136
A23: =MAX(A$2:A22)+1 -> 22 | B23: 金山组团5-10幢一层2区9号 | C23: 商业 | D23: 35 | E23: 80 | F23: 2800 | G23: 33600
A24: =MAX(A$2:A23)+1 -> 23 | B24: 金山组团5-10幢一层2区9号仓库 | C24: 仓库 | D24: 21 | E24: 30 | F24: 630 | G24: 7560
A25: =MAX(A$2:A24)+1 -> 24 | B25: 金山组团5-10幢一层2区10号 | C25: 商业 | D25: 43 | E25: 80 | F25: 3440 | G25: 41280
A26: =MAX(A$2:A25)+1 -> 25 | B26: 金山组团5-10幢一层2区11号 | C26: 商业 | D26: 61 | E26: 80 | F26: 4880 | G26: 58560
A27: =MAX(A$2:A26)+1 -> 26 | B27: 金山组团5-10幢一层2区12号 | C27: 商业 | D27: 42 | E27: 80 | F27: 3360 | G27: 40320
A28: =MAX(A$2:A27)+1 -> 27 | B28: 金山组团5-10幢一层2区13号 | C28: 商业 | D28: 140 | E28: 80 | F28: 11200 | G28: 134400
A29: =MAX(A$2:A28)+1 -> 28 | B29: 金山组团5-10幢一层2区15号 | C29: 商业 | D29: 69 | E29: 37 | F29: 2553 | G29: 30636
A30: =MAX(A$2:A29)+1 -> 29 | B30: 金山组团5-10幢一层2区16-18号 | C30: 商业 | D30: =203+4.3 -> 207.3 | E30: 37 | F30: 7670 | G30: 92040
A31: =MAX(A$2:A30)+1 -> 30 | B31: 金山组团5-10幢一层3区1号 | C31: 商业 | D31: 69.5 | E31: 80 | F31: 5560 | G31: 66720
A32: =MAX(A$2:A31)+1 -> 31 | B32: 金山组团5-10幢一层3区3号 | C32: 商业 | D32: 119 | E32: 80 | F32: 9520 | G32: 114240
A33: =MAX(A$2:A32)+1 -> 32 | B33: 金山组团5-10幢一层3区5号 | C33: 商业 | D33: 61.5 | E33: 80 | F33: 4920 | G33: 59040
A34: =MAX(A$2:A33)+1 -> 33 | B34: 金山组团5-10幢一层3区6-7号 | C34: 商业 | D34: =243.5+6.8 -> 250.3 | E34: 30 | F34: 7509 | G34: 90108
A35: =MAX(A$2:A34)+1 -> 34 | B35: 金山组团5-10幢一层3区12号 | C35: 商业 | D35: 68.5 | E35: 40 | F35: 2740 | G35: 32880
A36: =MAX(A$2:A35)+1 -> 35 | B36: 金山组团5-10幢一层3区13号 | C36: 商业 | D36: 68.5 | E36: 40 | F36: 2740 | G36: 32880
A37: =MAX(A$2:A36)+1 -> 36 | B37: 金山组团5-10幢一层3区14号 | C37: 商业 | D37: 69.5 | E37: 40 | F37: 2780 | G37: 33360
A38: =MAX(A$2:A37)+1 -> 37 | B38: 金山组团5-10幢一层3区15号 | C38: 商业 | D38: 68.5 | E38: 40 | F38: 2740 | G38: 32880
A39: =MAX(A$2:A38)+1 -> 38 | B39: 金山组团5-10幢一层3区16号 | C39: 商业 | D39: 70.5 | E39: 40 | F39: 2820 | G39: 33840
A40: =MAX(A$2:A39)+1 -> 39 | B40: 金山组团5-10幢一层8区11-12号 | C40: 仓库 | D40: 30 | E40: 30 | F40: 900 | G40: 10800
A41: =MAX(A$2:A40)+1 -> 40 | B41: 金山组团5-10幢一层8区13-20号 | C41: 仓库 | D41: =199+3 -> 202 | E41: 30 | F41: 6060 | G41: 72720
A42: =MAX(A$2:A41)+1 -> 41 | B42: 金山组团5-10幢一层8区21-23号 | C42: 仓库 | D42: 39 | E42: 28 | F42: 1092 | G42: 13104
